Cogmind - Beta 16.1 @@@ ROGUE MODE // 2026.04.07 @ 13:55:38 Player: Lyft Result: Destroyed by G-47 Trooper with Particle Gun Performance ------------- Evolutions (1) 500 Regions Visited (6) 1200 Robots Destroyed (113) 565 Value Destroyed (2481) 2481 Prototype IDs (18) 360 Alien Tech Used (0) 0 Bonus (230) 230 TOTAL SCORE: 5336 Bonus ------- High Alert Combat Kills 22 Follower Combat Kills 208 Cogmind --------- Core Integrity 0/400 Matter 205/300 Energy 265/265 System Corruption 0% Temperature Cool (68) Movement Treading (320) Ox2 Location -8/Mines Parts ------- > --- POWER (1) -------- Reinforced Ion Engine > --- PROPULSION (3) --- Light Treads Light Treads Armored Wheel > --- UTILITY (3) ------ Huge Storage Unit Seismic Detector Improved Targeting Computer > --- WEAPON (2) ------- Heavy Assault Rifle Improved Light Cannon > --- INVENTORY (25) --- Heavy Ion Engine Light Nuclear Core Light Treads Light Treads Light Treads Heat Sink Huge Storage Unit Medium Matter Pod (79) Sensor Array Experimental Sensor Array Advanced Terrain Scan Processor Transport Network Coupler Improved Melee Analysis Suite Propulsion Shielding Light Armor Plating Light Armor Plating Layered Light Armor Plating EM Disruption Field Improved Assault Rifle Improved Light Cannon Improved Light Cannon Mini Grenade Launcher Datajack Remote Datajack Katana Peak State ------------ > --- POWER ------------ Reinforced Ion Engine > --- PROPULSION ------- Light Treads Light Treads Armored Wheel > --- UTILITY ---------- Huge Storage Unit Improved Targeting Computer Layered Light Armor Plating > --- WEAPON ----------- Improved Assault Rifle Improved Light Cannon > --- INVENTORY -------- Heavy Ion Engine Light Treads Light Treads Light Treads Light Treads Heat Sink Huge Storage Unit Medium Matter Pod Sensor Array Experimental Sensor Array Advanced Terrain Scan Processor Seismic Detector Transport Network Coupler Improved Melee Analysis Suite Propulsion Shielding Light Armor Plating Light Armor Plating EM Disruption Field Heavy Assault Rifle Improved Assault Rifle Improved Light Cannon Improved Light Cannon Mini Grenade Launcher Datajack Remote Datajack [Rating: 23] Favorites ----------- Power Ion Engine Engine Ion Engine Propulsion Light Treads Treads Light Treads Leg Aluminum Leg Wheel Armored Wheel Utility Sensor Array Device Sensor Array Storage Large Storage Unit Processor Improved Targeting Computer Protection Layered Light Armor Plating Weapon Improved Assault Rifle Ballistic Gun Improved Assault Rifle Ballistic Cannon Improved Light Cannon Launcher Mini Grenade Launcher Special Weapon Remote Datajack Slashing Weapon Katana Special Melee Weapon Datajack Build | -11 -10 -10 -9 -9 -9 -8 ------- Run | Yrd Mat Min Mat Min Exi Min Slots Evolved 2 | . . . 2 . . . Power . | . . . . . . . Propulsion 1 | . . . 1 . . . Utility 1 | . . . 1 . . . Weapon . | . . . . . . . Parts Attached 68 | 4 17 5 34 4 1 3 Power 10 | . 2 2 5 1 . . Engine 10 | . 2 2 5 1 . . Core . | . . . . . . . Reactor . | . . . . . . . Propulsion 24 | 2 3 2 14 3 . . Treads 15 | 1 2 . 10 2 . . Leg . | . . . . . . . Wheel 9 | 1 1 2 4 1 . . Hover . | . . . . . . . Flight . | . . . . . . . Utility 14 | 2 2 1 8 . . 1 Device 8 | 2 1 . 5 . . . Storage 4 | . 1 1 2 . . . Processor 1 | . . . 1 . . . Hackware . | . . . . . . . Protection 1 | . . . . . . 1 Artifact . | . . . . . . . Weapon 20 | . 10 . 7 . 1 2 Energy Gun . | . . . . . . . Energy Cannon . | . . . . . . . Ballistic Gun 10 | . 6 . 3 . . 1 Ballistic Cannon 3 | . . . 2 . . 1 Launcher 2 | . 2 . . . . . Special Weapon 3 | . 1 . 1 . 1 . Impact Weapon . | . . . . . . . Slashing Weapon 1 | . . . 1 . . . Piercing Weapon . | . . . . . . . Special Melee Weapon 1 | . 1 . . . . . Unidentified Prototypes 1 | . . . 1 . . . Parts Lost 13 | . 6 2 3 . . 2 Power 3 | . 2 1 . . . . Propulsion 4 | . 1 . 2 . . 1 Utility 2 | . 1 1 . . . . Weapon 4 | . 2 . 1 . . 1 Highest Loss Streak 2 | . 2 2 2 . . 2 To Critical Strikes . | . . . . . . . Average Backups 16 | 4 9 12 15 22 25 24 Power 1 | 1 1 1 1 1 1 1 Propulsion 2 | 2 1 1 3 4 4 3 Utility 6 | . 1 3 5 9 12 13 Weapon 4 | 1 4 5 4 6 6 5 Tool/Special . | . . . . . . . Unused Backups 34 | 1 3 1 8 1 . 20 Power 5 | . 1 . 2 . . 2 Propulsion 4 | . . . 1 . . 3 Utility 19 | 1 . 1 5 1 . 11 Weapon 6 | . 2 . . . . 4 Tool/Special . | . . . . . . . Average Slot Usage (%) 96 | . 83 97 99 99 100 100 Engine 10 | . 7 13 10 11 11 11 Treads 19 | . 14 14 21 21 22 22 Wheel 11 | . 13 14 10 11 11 11 Device 11 | . 9 1 15 11 11 10 Storage 13 | . 14 24 11 11 11 11 Processor 5 | . . . 6 11 11 11 Ballistic Gun 14 | . 18 28 11 11 11 11 Ballistic Cannon 6 | . . . 9 10 1 9 Special Weapon 1 | . 3 . . . 9 1 Peak Build Rating 23 | 7 13 13 20 22 22 23 Average Rating 15 | 6 7 12 17 20 21 19 On Entrance 14 | 6 7 12 12 20 20 22 Avg Prop Armor Cover (%) 12 | 13 14 10 10 17 18 17 Naked Turns . | . . . . . . . Heaviest Build 101 | 14 32 36 96 98 98 101 Greatest Support 40 | 16 20 20 40 12 12 12 Greatest Overweight (x) 8 | . 1 3 7 8 8 8 Average Overweight (x) 3 | . . 2 2 7 8 8 Largest Inventory Capacity 25 | 8 15 15 25 25 25 25 Average Capacity 18 | 8 12 15 18 25 25 25 Most Carried 25 | 7 15 15 22 25 25 25 Average Carried 16 | 4 9 12 15 22 24 24 Final Capacity 25 | 8 15 15 25 25 25 25 Final Carried 25 | 4 12 14 22 25 25 25 Class Distribution -------------------- 90% | Mutant 9% | Scavenger-Mutant Dominant Class ---------------- Mutant | -10/Materials Mutant | -10/Mines Mutant | -9/Materials Mutant | -9/Mines Mutant | -9/Exiles Mutant | -8/Mines Resources | -11 -10 -10 -9 -9 -9 -8 ----------- Run | Yrd Mat Min Mat Min Exi Min Matter Collected 2877 | 324 438 497 1205 232 45 136 Remotely . | . . . . . . . Salvage Created 3319 | 223 472 449 1723 209 . 243 Parts 245 | 24 40 30 121 9 . 21 Haulers Intercepted 7 | . 2 . 5 . . . Recyclers Shooed 5 | 1 1 1 2 . . . Parts Field Recycled . | . . . . . . . Retrieved Matter . | . . . . . . . Parts Self-Destructed . | . . . . . . . Prevented . | . . . . . . . Parts Restored . | . . . . . . . Kills | -11 -10 -10 -9 -9 -9 -8 ------- Run | Yrd Mat Min Mat Min Exi Min Combat Hostiles Destroyed 68 | . 12 8 33 7 . 8 Guns 37 | . 4 8 21 2 . 2 Cannons 16 | . . . 10 3 . 3 AOE 15 | . 8 . 2 2 . 3 Classes Destroyed 12 | 2 7 . 2 1 . . Worker 4 | . 2 . 2 . . . Builder 5 | . 2 1 2 . . . Tunneler 10 | 7 1 2 . . . . Hauler 7 | . 2 . 5 . . . Recycler 9 | 1 1 3 4 . . . Operator 3 | . 2 . 1 . . . Watcher 7 | . 2 . 5 . . . Swarmer 22 | . 4 5 10 . . 3 Grunt 32 | . 8 3 12 6 . 3 Brawler 2 | . . . . 1 . 1 Duelist 2 | . . . 1 . . 1 Sentry 10 | . . . 10 . . . Best Kill Streak 7 | 4 7 7 6 3 . 3 Combat Bots Only 6 | . 4 3 6 3 . 3 Max Kills in Single Turn 2 | 1 2 1 2 2 . 1 Gunslinging . | . . . . . . . Exploded 2 | . 2 . 1 2 . 1 Melee . | . . . . . . . Uniques/NPCs Destroyed . | . . . . . . . Combat | -11 -10 -10 -9 -9 -9 -8 -------- Run | Yrd Mat Min Mat Min Exi Min Hostile Shots Fired 405 | . 90 62 174 20 . 59 Missed 110 | . 17 19 53 7 . 14 Hits 295 | . 73 43 121 13 . 45 Melee 14 | . . . 8 2 . 4 Projectile 281 | . 73 43 113 11 . 41 Critical Strikes 17 | . 1 1 8 . . 7 Damage Taken 3872 | . 755 473 1664 220 . 760 Core 629 | . 121 105 269 56 . 78 Absorbed by Shields . | . . . . . . . Core Remaining (%) 54 | 100 . 9 . . . . Volleys Fired 340 | 21 115 39 118 20 7 20 Largest 2 | 2 2 2 2 2 1 2 Hottest 100 | 40 100 46 100 56 5 56 Shots Fired 578 | 42 149 78 230 36 7 36 Gun 410 | 42 108 78 150 16 . 16 Cannon 107 | . . . 75 16 . 16 Launcher 33 | . 24 . 2 4 . 3 Special 28 | . 17 . 3 . 7 1 Kinetic 517 | 42 108 78 225 32 . 32 Thermal 20 | . 17 . 3 . . . Explosive 33 | . 24 . 2 4 . 3 Electromagnetic . | . . . . . . . Robot Hit Streak 29 | 5 11 13 28 29 12 8 Robot Miss Streak 3 | 3 3 3 2 2 1 2 Penetration Max . | . . . . . . . Secondary Targets 3 | . 2 . 1 . . . Max Gunslinging Chain 1 | . 1 . 1 . . . Shots Hit Robots 365 | 21 74 50 166 23 6 25 Core Hits 164 | 12 40 18 71 11 . 12 Critical Kills . | . . . . . . . Critical Parts Destroyed 3 | . 2 . 1 . . . Critical Strikes 8 | . 2 . 5 1 . . Destroy 3 | . 2 . 1 . . . Blast 5 | . . . 4 1 . . Melee Attacks 35 | . . . 35 . . . Impact . | . . . . . . . Slashing 35 | . . . 35 . . . Piercing . | . . . . . . . Sneak Attacks 1 | . . . 1 . . . Combat Hostiles . | . . . . . . . Follow-up Attacks . | . . . . . . . Damage Inflicted 6860 | 234 1665 774 3066 558 . 563 Guns 3894 | 234 818 771 1702 171 . 198 Cannons 1553 | . . . 1095 202 . 256 Explosions 1253 | . 799 . 160 185 . 109 Melee 108 | . . . 108 . . . Ramming 4 | . . 3 1 . . . Kinetic 5447 | 234 818 771 2797 373 . 454 Thermal 48 | . 48 . . . . . Explosive 1253 | . 799 . 160 185 . 109 Electromagnetic . | . . . . . . . Impact . | . . . . . . . Slashing 108 | . . . 108 . . . Piercing . | . . . . . . . Highest Corruption . | . . . . . . . Average Corruption . | . . . . . . . Corruption Purged . | . . . . . . . Corruption Blocked . | . . . . . . . Overload Shots . | . . . . . . . Overflow Damage 100 | . 80 . 13 . . 7 Projectiles 20 | . . . 13 . . 7 Explosions 80 | . 80 . . . . . Melee . | . . . . . . . Knockbacks 11 | . . . 5 2 . 4 Impact . | . . . . . . . Kinetic 11 | . . . 5 2 . 4 Secondary . | . . . . . . . Self-Inflicted Damage 90 | . 36 . 16 38 . . Shots 3 | . 1 . 1 1 . . Rammed 2 | . . 1 1 . . . Targets Rammed 2 | . . 1 1 . . . Kicked . | . . . . . . . Crushed . | . . . . . . . Highest Temperature 322 | . 80 4 23 2 . 322 Average Temperature 58 | . 17 4 7 2 . 156 Received Heat Transfer 1641 | . 261 159 666 69 . 486 Siege Activations . | . . . . . . . Martial Activations . | . . . . . . . Shielding Activations . | . . . . . . . Robots Disrupted . | . . . . . . . Combat Hostiles . | . . . . . . . Robots Corrupted . | . . . . . . . Combat Hostiles . | . . . . . . . Parts Fried . | . . . . . . . Impact Corruptions . | . . . . . . . Robots Melted . | . . . . . . . Combat Hostiles . | . . . . . . . Parts Melted . | . . . . . . . Heat Transferred 100 | . 100 . . . . . Parts Sabotaged . | . . . . . . . Parts Stolen . | . . . . . . . Parts Stripped . | . . . . . . . Power Chain Reactions . | . . . . . . . Alert | -11 -10 -10 -9 -9 -9 -8 ------- Run | Yrd Mat Min Mat Min Exi Min Maximum Alert Level 2 | . . . 2 . . . Low Security (%) 68 | 100 100 100 26 100 . 100 Level 1 27 | . . . 63 . . . Level 2 4 | . . . 9 . . . Level 3 . | . . . . . . . Level 4 . | . . . . . . . Level 5 . | . . . . . . . High Security . | . . . . . . . Max Security . | . . . . . . . Peak Influence 452 | 10 180 160 452 166 . 88 Initial 166 | . . . 3 166 . . Average 137 | 1 76 48 255 53 . 14 Influence Increases 2714 | 40 548 487 1184 236 . 219 Destroy 0b10 Robot/C 1560 | . 240 320 660 180 . 160 Destroy 0b10 Robot/NC 225 | 40 60 30 95 . . . Destroy Leader 388 | . 58 70 200 30 . 30 Allied During Kill 25 | . . 22 . 3 . . Successful Hack 39 | . 11 . 28 . . . Disable Machine 150 | . 75 . 60 . . 15 Destroy Structure 162 | . 74 . 51 23 . 14 Partial Spotted 15 | . 15 . . . . . Lose Combat Pursuer 150 | . 15 45 90 . . . Influence Decreases 2670 | 40 547 478 766 568 96 175 Entered New Map 366 | . . 1 7 262 96 . Time Decay 2184 | 40 487 477 719 286 . 175 Lost Part 90 | . 60 . 30 . . . Lost Ally 30 | . . . 10 20 . . Squads Dispatched 10 | . 4 . 4 2 . . Investigation 3 | . 1 . 1 1 . . Extermination . | . . . . . . . Reinforcement 4 | . 3 . 1 . . . Assault 3 | . . . 2 1 . . Garrison . | . . . . . . . Intercept . | . . . . . . . Searches Triggered . | . . . . . . . Construction Impeded . | . . . . . . . Haulers Reinforced . | . . . . . . . Active Scanning Responses . | . . . . . . . Cargo Convoy Interrupts . | . . . . . . . Stealth | -11 -10 -10 -9 -9 -9 -8 --------- Run | Yrd Mat Min Mat Min Exi Min Distress Signals 5 | . 3 . 2 . . . Communications Jammed . | . . . . . . . Distress Signals . | . . . . . . . Times Spotted 116 | . 32 18 48 11 . 7 Peak Tracking Total 7 | . 4 5 7 4 . 3 Tactical Retreats 8 | . 1 2 5 . . . Traps | -11 -10 -10 -9 -9 -9 -8 ------- Run | Yrd Mat Min Mat Min Exi Min Traps Triggered 1 | . . . 1 . . . Indirectly . | . . . . . . . Trap Hack Attempts . | . . . . . . . Triggered . | . . . . . . . Disarmed . | . . . . . . . Reprogrammed . | . . . . . . . Reused . | . . . . . . . Traps Extracted . | . . . . . . . Installed . | . . . . . . . Triggered . | . . . . . . . Machines | -11 -10 -10 -9 -9 -9 -8 ---------- Run | Yrd Mat Min Mat Min Exi Min Machines Disabled 10 | . 5 . 4 . . 1 Max in Single Turn 3 | . 3 . 1 . . 1 Machines Repaired . | . . . . . . . Machines Dismantled . | . . . . . . . Machines Sabotaged . | . . . . . . . Overloaded Fab Kills . | . . . . . . . Hacking | -11 -10 -10 -9 -9 -9 -8 --------- Run | Yrd Mat Min Mat Min Exi Min Machines Accessed 20 | . 6 . 12 1 1 . Terminals 14 | . 4 . 10 . . . Fabricators . | . . . . . . . Repair Stations 1 | . . . 1 . . . Recycling Units 2 | . 2 . . . . . Scanalyzers 1 | . . . 1 . . . Garrison Access . | . . . . . . . Total Hacks 41 | . 12 . 26 1 2 . Successful 21 | . 8 . 10 1 2 . Failed 19 | . 4 . 15 . . . Catastrophic 2 | . . . 2 . . . Database Lockouts 1 | . . . 1 . . . Manual 19 | . 1 . 18 . . . Terminals 29 | . 7 . 22 . . . Fabricators . | . . . . . . . Repair Stations 2 | . . . 2 . . . Recycling Units 5 | . 5 . . . . . Scanalyzers 2 | . . . 2 . . . Garrison Access . | . . . . . . . Terminal Hacks 13 | . 6 . 4 1 2 . Record 2 | . . . . . 2 . Robot Analysis 1 | . 1 . . . . . Prototype ID Bank 2 | . 1 . 1 . . . Open Door 1 | . . . . 1 . . Branch Access Points 1 | . . . 1 . . . Terminal Index 1 | . . . 1 . . . Alert Level 1 | . 1 . . . . . Locate Traps 2 | . 2 . . . . . Hauler Manifests 2 | . 1 . 1 . . . Fabricator Hacks . | . . . . . . . Repair Station Hacks 1 | . . . 1 . . . Scan Component 1 | . . . 1 . . . Recycling Unit Hacks 2 | . 2 . . . . . Report Inventory 1 | . 1 . . . . . Retrieve Matter 1 | . 1 . . . . . Scanalyzer 1 | . . . 1 . . . Retrieve Study 1 | . . . 1 . . . Garrison Access Hacks . | . . . . . . . Unauthorized Hacks 4 | . . . 4 . . . Terminals 4 | . . . 4 . . . Assimilate 1 | . . . 1 . . . Botnet 2 | . . . 2 . . . Operators 1 | . . . 1 . . . Fabricators . | . . . . . . . Repair Stations . | . . . . . . . Recycling Units . | . . . . . . . Scanalyzers . | . . . . . . . Garrison Access . | . . . . . . . Data Cores Recovered . | . . . . . . . Used . | . . . . . . . Hacking Detections 11 | . 2 . 9 . . . Full Trace Events 1 | . 1 . . . . . Feedback Events . | . . . . . . . Feedback Blocked . | . . . . . . . Robot Schematics Acquired . | . . . . . . . Robots Built . | . . . . . . . Authchips . | . . . . . . . Time . | . . . . . . . Total Robot Build Rating . | . . . . . . . Part Schematics Acquired . | . . . . . . . Parts Built . | . . . . . . . Authchips . | . . . . . . . Time . | . . . . . . . Total Part Build Rating . | . . . . . . . Part Studies Acquired 1 | . . . 1 . . . Parts Repaired . | . . . . . . . Time . | . . . . . . . Parts Recycled . | . . . . . . . Recycled Matter . | . . . . . . . Retrieved Matter . | . . . . . . . Retrieved Components . | . . . . . . . Parts Scanalyzed . | . . . . . . . Part Schematics Acquired . | . . . . . . . Parts Damaged . | . . . . . . . Bothacking | -11 -10 -10 -9 -9 -9 -8 ------------ Run | Yrd Mat Min Mat Min Exi Min Used RIF Installer . | . . . . . . . Robots Hacked 5 | . . . . . 5 . Non-combat 3 | . . . . . 3 . Combat 2 | . . . . . 2 . Robot Hacks Applied 5 | . . . . . 5 . parse_system 5 | . . . . . 5 . Relay Couplers Released . | . . . . . . . Fabnet Peak Effective % . | . . . . . . . Robots Rewired . | . . . . . . . Allies Hacked . | . . . . . . . Hacks Repelled . | . . . . . . . Allies | -11 -10 -10 -9 -9 -9 -8 -------- Run | Yrd Mat Min Mat Min Exi Min Total Allies 5 | . . 3 1 1 . . Largest Group 3 | . . 3 2 1 . . Highest-Rated Group 40 | . . 40 32 31 . . Highest-Rated Ally 31 | . . 16 16 31 . . Total Orders . | . . . . . . . Ally Attacks 51 | . . 34 3 14 . . Total Damage 641 | . . 440 33 168 . . Kills 11 | . . 9 . 2 . . Allies Corrupted . | . . . . . . . Allies Melted . | . . . . . . . Intel | -11 -10 -10 -9 -9 -9 -8 ------- Run | Yrd Mat Min Mat Min Exi Min Active Infowar (turns) 7502 | 208 618 . 4076 1256 430 914 Sensors 5859 | . . . 4062 1253 430 114 Seismic 1824 | 208 618 . 195 3 . 800 Robot Analysis Total 1 | . 1 . . . . . Derelict Logs Recovered 2 | . . 1 . 1 . . Drone Launches . | . . . . . . . Drone Recoveries . | . . . . . . . Exploration | -11 -10 -10 -9 -9 -9 -8 ------------- Run | Yrd Mat Min Mat Min Exi Min Turns Passed 9912 | 247 1490 1424 4083 1256 430 982 Spaces Moved 4506 | 89 881 774 1725 556 199 282 Core . | . . . . . . . Treads 1063 | . 76 48 939 . . . Legs . | . . . . . . . Wheels 3443 | 89 805 726 786 556 199 282 Hover . | . . . . . . . Flight . | . . . . . . . Fastest Speed 100 | 100 100 125 110 195 210 210 Average Speed 159 | 100 119 134 169 196 210 210 Slowest Speed 240 | 100 240 240 240 210 210 210 Overloaded Moves . | . . . . . . . Propulsion Burnouts . | . . . . . . . Robots Hopped . | . . . . . . . Potential Cave-ins . | . . . . . . . Cave-ins Triggered . | . . . . . . . Exploration Rate (%) 69 | 3 93 98 93 97 59 41 Regions Visited 6 Branch Regions 4 Pre-discovered Areas 1 | . . . . . 1 . Known Exits Taken 1 | . . . 1 . . . Unknown Exits Taken 5 | 1 1 1 . 1 1 . Scrap Searched 4 | . . 3 . 1 . . Spaces Dug 42 | . 11 . 31 . . . Terrain Destroyed 180 | . 85 . 42 35 . 18 Melee 31 | . . . 31 . . . Projectile 16 | . 12 . 2 1 . 1 AOE 133 | . 73 . 9 34 . 17 Terrain Rammed . | . . . . . . . Walls Destroyed . | . . . . . . . Machines Disabled . | . . . . . . . Actions | -11 -10 -10 -9 -9 -9 -8 --------- Run | Yrd Mat Min Mat Min Exi Min Total 6574 | 212 1145 1083 2606 685 208 635 Wait 1462 | 88 100 250 612 88 . 324 Move 4500 | 88 880 773 1724 555 198 282 Hop . | . . . . . . . Pick Up 79 | 5 20 9 34 8 1 2 Fast Attach 7 | . 1 . 5 1 . . Attach 32 | 4 10 4 9 3 . 2 Detach 3 | . 3 . . . . . Swap 51 | . 9 1 31 4 1 5 Drop 63 | 6 7 6 37 6 1 . Fire 340 | 21 115 39 118 20 7 20 Melee 35 | . . . 35 . . . Ram 1 | . . . 1 . . . Kick . | . . . . . . . Crush 1 | . . 1 . . . . Escape Stasis . | . . . . . . . Rewire . | . . . . . . . Trap . | . . . . . . . Miscellaneous . | . . . . . . . Route ------- -11/Scrapyard -10/Materials (discovered 5 exits: *Mat x3 / *Min / [*Sub]) -10/Mines (discovered 3 exits: *Mat x2 / [*Sub]) -9/Materials (discovered 5 exits: [*Mat x3] / *Min x2) -9/Mines (discovered 3 exits: [*Mat x2] / *Exi) -9/Exiles -8/Mines History --------- Turn | Location | Event 11 | -11/Scrapyard | Discovered new exit (range 3) 248 | -11/Scrapyard | Entered Materials 303 | -10/Materials | Build established: Mutant 679 | -10/Materials | Discovered new exit (range 3) 782 | -10/Materials | Discovered new exit (range 4) 900 | -10/Materials | Discovered new exit (range 12) 1103 | -10/Materials | Discovered new exit (range 15) 1304 | -10/Materials | Discovered new exit (range 7) 1738 | -10/Materials | Entered Mines 1740 | -10/Mines | Core integrity fell below 50% 1858 | -10/Mines | Discovered new exit (range 10) 1926 | -10/Mines | Core integrity fell below 20% 1957 | -10/Mines | Found a hidden stash of uninstalled traps 2001 | -10/Mines | Found a damaged Exp. Sensor Array with a note attached 2003 | -10/Mines | Found Prototype Device 2086 | -10/Mines | Learned 2 Materials zone layouts 2147 | -10/Mines | Assisted by bots powering up and referring to "LRC-V3" 2640 | -10/Mines | Discovered new exit (range 8) 3090 | -10/Mines | Discovered new exit (range 6) 3162 | -10/Mines | Entered Materials 3162 | -9/Materials | Accompanied by 2 allies 3162 | -9/Materials | Evolved 2 slots: Propulsion x1, Utility x1 4395 | -9/Materials | Discovered new exit (range 13) 4422 | -9/Materials | Build established: Scavenger-Mutant 4877 | -9/Materials | Discovered new exit (range 11) 5278 | -9/Materials | Build established: Mutant 5391 | -9/Materials | Discovered new exit (range 7) 6713 | -9/Materials | Identified exit to Mines 6836 | -9/Materials | Core integrity fell below 50% 6991 | -9/Materials | Discovered new exit (range 14) 7043 | -9/Materials | Central database locked down 7162 | -9/Materials | First assault squad dispatched 7245 | -9/Materials | Entered Mines 7246 | -9/Mines | Assembled infested the area 7522 | -9/Mines | Learned 4 Materials zone layouts 7548 | -9/Mines | Discovered new exit (range 6) 7669 | -9/Mines | Met a Derelict shopkeep closing up shop 7740 | -9/Mines | Received a Rocket Launcher from a helpful Derelict 7785 | -9/Mines | Discovered new exit (range 5) 8069 | -9/Mines | Discovered new exit (range 9) 8093 | -9/Mines | Met a Derelict testing a Signal Generator 8122 | -9/Mines | Found Signal Generator 8375 | -9/Mines | Core integrity fell below 20% 8501 | -9/Mines | Entered Exiles 8552 | -9/Exiles | Met 8R-AWN 8593 | -9/Exiles | Met EX-HEX 8681 | -9/Exiles | Met EX-BIN 8753 | -9/Exiles | Met EX-DEC 8797 | -9/Exiles | Learned location of Zion (-7) 8914 | -9/Exiles | Discovered new exit (range 10) 8931 | -9/Exiles | Entered Mines 9913 | -8/Mines | Destroyed by G-47 Trooper with Particle Gun Last Messages --------------- 09427_ U-05 Engineer lays Concrete. 09435_ U-05 Engineer builds a Wall. 09439_ U-05 Engineer lays Concrete. 09440_ U-05 Engineer builds a Wall. 09444_ U-05 Engineer lays Concrete. 09445_ U-05 Engineer builds a Wall. 09453_ K-01 Serf collects debris. 09454_ U-05 Engineer lays Concrete. 09456_ K-01 Serf collects debris. 09457_ U-05 Engineer lays Concrete. 09461_ U-05 Engineer builds a Wall. 09462_ U-05 Engineer lays Concrete. 09463_ U-05 Engineer builds a Wall. 09592_ K-01 Serf collects debris. 09900_ B-36 Bruiser destroyed. 09903_ G-47 Trooper knocked back. 09904_ Critical hit (Burn: +37). 09906_ G-47 Trooper destroyed. 09909_ G-47 Trooper knocked back. 09913_ Critical hit (Burn: +37). Map ----- +----------------------------------------------------+ | | | | | | | | | | | | | | | | | | | | | | | | | | | | | | | | | ?????????????????????????????????????????????????? | | ?????????????????????????????????????????????????? | | ?????????????????????????????????????????????????? | | ????????????????????######???????????????????????? | | ???????????????????## ##??????????????????????? | | ???????????????????# #??????????????????????? | | ???????????????????#g ##?#####???????????????? | | ???????????????????#= ### ###?????????????? | | ????????#####??????#%! ## #?????????????? | | ???????## #?????##[%! @ ## ##?????????????? | | ???????# #???### *%/## ## #??????????????? | | ???????# ##?## ####### #??????????????? | | ???????## ### #?????##++##??????????????? | | ????????## ##??????# #??????????????? | | ?????????## ##???????## #??????????????? | | ??????????## ###?????????# #??????????????? | | ???????????## ##??????????## ##????####?????? | | ????????????# ##??????????## #???## #?????? | | ????????????# ##???????????# ##### #?????? | | ????????????## ##????????????# ## #?????? | | ?????????????# #?????????????## # ##?????? | | ?????????????# #??????????????#### # ##?????? | | ?????????????# #????????????????# #?????? | | ?????????????# #????????????????## ## ##?????? | | ?????????????# #?????????????????# ##?????? | | ?????????????# #?????????????????## *# #?????? | | ?????????????# ####???????????????# ## [ ##????? | | ?????????????# #????############## [ ##???? | | ?????????????#### #????# =" " ##??? | | ?????????######## ###### [ #??? | | ?????????# ########### #??? | | ?????????# ############# #?????????#### # ##??? | | ???????????????????????# #????????????# ####???? | | ???????????????????????# #??????#####?# #??????? | +----------------------------------------------------+ Best States ------------- Heat Dissipation 38 Energy Generation 14 Energy Capacity 280 Matter Stores 300 Matter Capacity 300 Sight Range 16 Robot Scan Range 14 Terrain Scan Density 10 Armor Coverage 150 Evasion (%) 40 Targeting Accuracy 6 Recoil Reduction 2 Item Schematics ----------------- None Robot Schematics ------------------ None Fabricated ------------ Nothing Repaired ---------- Nothing Studied --------- Hvy. Assault Rifle | -9/Materials | Hacked Alien Tech Used ----------------- None Achievements -------------- None Challenges ------------ None Game ------ Seed GravjetMasterReactor Manual? 0 Play Time 01:07:26 Cumulative 70.0 hours Start 2026.04.07 @ 12:51:37 End 2026.04.07 @ 13:55:38 Sessions 1 Manual Loads 0 Difficulty Rogue Special Mode None Game No. 61 Rogue 51 Adventurer 9 Explorer 1 Win Type - Total 0 Types 0/0/0/0/0/0/0/0/0/0 Lore% 37 Gallery% 34 Achievement% 27 Wizard Run 0 Options --------- Layout 2 ASCII 0 Keyboard 0 Movement Mouse Keybinds 0 Fullscreen 1 Font 48/Terminus Map View 50x44 Zoom Use 0% Tactical HUD 1 Map Filters NONE Filters NONE Steam 1 RUN: 96cfc19e-35aa-4e58-9860-d4e8f8329fae